fUSD/lending_fUSD_20240301
["ID","MTS","AMOUNT","RATE_DAILY","PERIOD"]
[316007400,1709324839920,-150.0,0.00019,2]
[316007401,1709324839940,-151.44,0.00019066,2]
[316007402,1709324839963,-261.11858643,0.00019087,2]
[316007403,1709324841136,-491.17141357,0.00019087,2]
[316007404,1709324841156,-259.9,0.00019137,2]
[316007405,1709324841176,-151.44,0.00019164,2]
[316007406,1709324841197,-159.2,0.00019178,2]
[316007407,1709324841218,-250.0,0.00019178,2]
[316007408,1709324841239,-500.0,0.00019178,2]
[316007409,1709324841258,-1878.49,0.00019178,2]
[316007410,1709324841277,-134304.65859662,0.00019212,2]
[316007411,1709324846436,-21794.77364486,0.00019212,2]
[316007412,1709324846463,-2206.46724019,0.00019212,2]
[316007413,1709324846511,411.59,0.0001876,2]
[316007414,1709324885069,250.0,0.00018718,2]
[316007415,1709324901100,2030.32,0.00018622,2]
[316007416,1709324914899,607.61,0.00018697,2]
[316007417,1709324915565,23900.0,0.00018697,2]
[316007418,1709324947102,-204.01923883,0.00018888,2]
[316007419,1709324947123,-234.84782212,0.00018889,2]
[316007420,1709324947146,-150.0,0.0001889,2]
[316007421,1709324947167,-150.0,0.00019,2]
[316007422,1709324947191,-250.0,0.00019178,2]
[316007423,1709324947212,-422.67311678,0.000192,2]
[316007424,1709324947234,-175.33881001,0.0001921,2]
[316007425,1709324947254,-155.33611342,0.00019211,2]
[316007426,1709324947278,-967.50089538,0.00019211,2]
[316007427,1709324947299,-1100.90643413,0.00019211,2]
[316007428,1709324947321,-6006.10051833,0.00019212,2]
[316007429,1709324947342,-166.06,0.00019231,10]
[316007430,1709324947363,-151.44,0.00019261,2]
[316007431,1709324947384,-259.9,0.00019274,2]
[316007432,1709324947405,-151.44,0.00019358,2]
[316007433,1709324947426,-155.32688139,0.00019404,2]
[316007434,1709324947448,-155.14950808,0.00019404,2]
[316007435,1709324947468,-292.59029573,0.00019404,2]
[316007436,1709324947488,-205.39995957,0.00019404,2]
[316007437,1709324947509,-416.53772257,0.00019404,2]
[316007438,1709324947531,-633.61112732,0.00019404,2]
[316007439,1709324947551,-230.80679377,0.00019404,2]
[316007440,1709324947577,-226.15782634,0.00019404,2]
[316007441,1709324947598,-810.33340771,0.00019404,2]
[316007442,1709324947618,-1241.85121677,0.00019404,2]
[316007443,1709324947639,-9999.99,0.00019404,2]
[316007444,1709324947660,-430.25670487,0.00019405,2]
[316007445,1709324947681,-692.77664612,0.00019405,2]
[316007446,1709324947703,-1059.54,0.00019405,2]
[316007447,1709324947724,-537.63,0.00019405,2]
[316007448,1709324947744,-3140.96,0.00019405,2]
[316007449,1709324947765,-259.9,0.00019411,2]
[316007450,1709324947785,-163.06,0.00019438,2]
[316007451,1709324947806,-151.44,0.00019456,2]
[316007452,1709324947828,-158.57111146,0.000195,2]
[316007453,1709324947850,-150.0,0.00019548,2]
[316007454,1709324947870,-178.0,0.00019548,2]
[316007455,1709324947891,-500.0,0.00019548,2]
[316007456,1709324947911,-237.2368493,0.00019548,2]
[316007457,1709324959148,-22.6631507,0.00019548,2]
[316007458,1709324959168,-151.44,0.00019553,2]
[316007459,1709324959188,-237.32970097,0.00019598,2]
[316007460,1709324959207,-155.0,0.00019599,2]
[316007461,1709324959227,-155.22825408,0.000196,2]
[316007462,1709324959246,-155.0,0.000196,2]
[316007463,1709324959266,-478.19179336,0.000196,2]
[316007464,1709324959285,-459.07131453,0.000196,2]
[316007465,1709324959305,-155.4075554,0.000196,2]
[316007466,1709324959324,-4067.16753096,0.000196,2]
[316007467,1709324960116,-150.0,0.00019,2]
[316007468,1709324960139,-1734.85489953,0.000196,2]
[316007469,1709324960160,-1035.98677452,0.000196,7]
[316007470,1709324960180,-157.24730753,0.000196,2]
[316007471,1709324960200,-6606.80142013,0.000196,2]
[316007472,1709324960221,-216.50932404,0.000196,2]
[316007473,1709324960241,-1217.61099103,0.000196,2]
[316007474,1709324960261,-1598.96248092,0.000196,2]
[316007475,1709324960281,-155.35098602,0.000196,2]
[316007476,1709324960300,-936.65453699,0.000196,4]
[316007477,1709324960320,-155.0,0.000196,2]
[316007478,1709324960340,-1305.41986868,0.000196,2]
[316007479,1709324970165,-152.85030093,0.00019548,2]
[316007480,1709324970186,-107.29462034,0.000196,2]
[316007481,1709324970206,-251.32830209,0.000196,2]
[316007482,1709324970226,-500.0,0.000196,2]
[316007483,1709324970247,-150.0,0.00019615,2]
[316007484,1709324970268,-151.44,0.0001965,2]
[316007485,1709324970289,-159.2,0.00019658,2]
[316007486,1709324970309,-499.99,0.00019658,2]
[316007487,1709324970329,-259.9,0.00019685,2]
[316007488,1709324970348,-411.59,0.00019698,2]
[316007489,1709324970369,-150.0,0.00019736,2]
[316007490,1709324970388,-300.25379742,0.00019822,2]
[316007491,1709324970408,-166.06,0.00019839,10]
[316007492,1709324970428,-150.0,0.00019853,2]
[316007493,1709324970452,-9954.06128787,0.000199,2]
[316007494,1709324970472,-158.57111146,0.000199,2]
[316007495,1709324970491,-7588.43942681,0.000199,2]
[316007496,1709324970511,-863.38840217,0.000199,2]
[316007497,1709324970530,-1721.52898478,0.000199,2]
[316007498,1709324970549,-592.75154726,0.000199,2]
[316007499,1709324970569,-592.75154725,0.000199,2]
[316007500,1709324970588,-592.75154725,0.000199,2]
[316007501,1709324970609,-3207.9877168,0.000199,2]
[316007502,1709324970628,-456.66091217,0.000199,2]
[316007503,1709324970647,-158.51591258,0.000199,2]
[316007504,1709324970665,-1080.32537709,0.000199,2]
[316007505,1709324970685,-2058.71822194,0.000199,2]
[316007506,1709324970705,-638.05244127,0.000199,2]
[316007507,1709324970724,-172.00034836,0.000199,2]
[316007508,1709324970745,-150.0,0.00019912,2]
[316007509,1709324970765,-153.4514762,0.0001999,2]
[316007510,1709324970786,-153.4514762,0.0001999,2]
[316007511,1709324970806,-153.4514762,0.0001999,2]
[316007512,1709324970825,-165.84,0.0001999,2]
[316007513,1709324970844,-165.84,0.0001999,2]
[316007514,1709324970866,-165.84,0.0001999,2]
[316007515,1709324970886,-165.84,0.0001999,2]
[316007516,1709324970907,-165.84,0.0001999,2]
[316007517,1709324970927,-165.84,0.0001999,2]
[316007518,1709324970948,-5732.87271226,0.00019992,2]
[316007519,1709324970968,-163.31001827,0.00019998,2]
[316007520,1709324970992,-157.68094785,0.00019998,2]
[316007521,1709324971014,-6643.42034325,0.00019998,2]
[316007528,1709325032522,-219.60320739,0.000199,3]
[316007529,1709325032532,-10662.23136103,0.000199,2]
[316007530,1709325032542,-3495.764018,0.000199,2]
[316007531,1709325032551,-174.48854064,0.000199,2]
[316007532,1709325032561,-1147.68598986,0.000199,2]
[316007533,1709325032571,-690.71072172,0.000199,2]
[316007534,1709325032581,-250.0,0.00019962,2]
[316007535,1709325032591,-329.08,0.0001999,2]
[316007536,1709325032600,-329.08,0.0001999,2]
[316007537,1709325032610,-329.08,0.0001999,2]
[316007538,1709325032619,-329.08,0.0001999,2]
[316007539,1709325032629,-329.08,0.0001999,2]
[316007540,1709325032638,-329.08,0.0001999,2]
[316007541,1709325032648,-329.08,0.0001999,2]
[316007542,1709325032659,-329.08,0.0001999,2]
[316007543,1709325032669,-329.08,0.0001999,2]
[316007544,1709325032679,-329.08,0.0001999,2]
[316007545,1709325032688,-305.7380255,0.0001999,2]
[316007546,1709325032698,-305.7380255,0.0001999,2]
[316007547,1709325032708,-305.7380255,0.0001999,2]
[316007548,1709325032717,-6665.66013301,0.00019998,2]
[316007549,1709325032727,-256.2672157,0.00019998,2]
[316007550,1709325032737,-707.04218448,0.00019998,2]
[316007551,1709325032746,-11131.33951959,0.00019998,2]
[316007552,1709325032755,-235.38453496,0.00019998,2]
[316007553,1709325032765,-196.39011436,0.00019998,2]
[316007554,1709325032774,-155.0,0.00019998,2]
[316007555,1709325032783,-2000.0,0.00019998,2]
[316007556,1709325032793,-200.0,0.00019998,2]
[316007557,1709325032802,-396.67969995,0.00019999,5]
[316007558,1709325032812,-297.70796566,0.00019999,2]
[316007559,1709325032821,-586.63446856,0.00019999,2]
[316007560,1709325032830,-500.0,0.00019999,2]
[316007561,1709325032840,-178.3818858,0.00019999,2]
[316007562,1709325032849,-639.13940497,0.00019999,2]
[316007563,1709325032858,-500.0,0.00019999,2]
[316007564,1709325032868,-235.86709683,0.00019999,2]
[316007565,1709325032877,-500.0,0.00019999,2]
[316007566,1709325032887,-500.0,0.00019999,2]
[316007567,1709325032896,-500.0,0.00019999,2]
[316007568,1709325032905,-300.33626435,0.00019999,2]
[316007569,1709325032914,-500.0,0.00019999,2]
[316007570,1709325032924,-500.0,0.00019999,2]
[316007571,1709325032933,-500.0,0.00019999,2]
[316007572,1709325032943,-573.65627991,0.00019999,2]
[316007573,1709325032952,-201.54125751,0.00019999,2]
[316007574,1709325032962,-275.4505534,0.00019999,2]
[316007575,1709325032972,-646.93605094,0.00019999,2]
[316007576,1709325032986,-193.86263835,0.00019999,2]
[316007577,1709325032995,-480.36746296,0.00019999,2]
[316007578,1709325033006,-500.0,0.00019999,2]
[316007579,1709325033016,-500.0,0.00019999,2]
[316007580,1709325033025,-500.0,0.00019999,2]
[316007581,1709325033035,-500.0,0.00019999,2]
[316007582,1709325033044,-500.0,0.00019999,2]
[316007583,1709325033055,-500.0,0.00019999,2]
[316007584,1709325033064,-500.75040564,0.00019999,2]
[316007585,1709325033073,-500.0,0.00019999,2]
[316007586,1709325033083,-500.0,0.00019999,2]
[316007587,1709325033093,-500.0,0.00019999,2]
[316007588,1709325033102,-500.0,0.00019999,2]
[316007589,1709325033111,-640.19488656,0.00019999,2]
[316007590,1709325033121,-500.0,0.00019999,2]
[316007591,1709325033130,-457.50288528,0.00019999,2]
[316007592,1709325033164,-42.49711472,0.00019999,2]
[316007593,1709325033174,-500.0,0.00019999,2]
[316007594,1709325033184,-500.0,0.00019999,2]
[316007595,1709325033193,-500.0,0.00019999,2]
[316007596,1709325033203,-500.0,0.00019999,2]
[316007597,1709325033212,-445.05535942,0.00019999,2]
[316007598,1709325033222,-500.0,0.00019999,2]
[316007599,1709325033231,-500.0,0.00019999,2]
[316007600,1709325033241,-500.0,0.00019999,2]
[316007601,1709325033250,-500.0,0.00019999,2]
[316007602,1709325033259,-500.0,0.00019999,2]
[316007603,1709325033269,-500.0,0.00019999,2]
[316007604,1709325033278,-153.7084507,0.00019999,2]
[316007605,1709325033287,-398.09844045,0.00019999,2]
[316007606,1709325033296,-500.0,0.00019999,2]
[316007607,1709325033305,-500.0,0.00019999,2]
[316007608,1709325033314,-500.0,0.00019999,2]
[316007609,1709325033324,-500.0,0.00019999,2]
[316007610,1709325033333,-500.0,0.00019999,2]
[316007611,1709325033343,-600.65733811,0.00019999,2]
[316007612,1709325033352,-320.13179937,0.00019999,2]
[316007613,1709325033361,-2070701.76290465,0.0002,2]
[316007614,1709325033374,-136296.54157589,0.0002,2]
[316007615,1709325033386,-87130.94869115,0.0002,2]
[316007616,1709325033402,-1069.34343807,0.0002,2]
[316007617,1709325033438,-1954.03480306,0.0002,2]
[316007618,1709325033469,-1689529.79433859,0.0002,2]
[316007619,1709325033481,-630091.1648749,0.0002,2]
[316007620,1709325033494,-34434.67698663,0.0002,2]
[316007621,1709325033537,-474.7803758,0.0002,2]
[316007622,1709325033550,-1354.51893571,0.0002,2]
[316007623,1709325033597,-303.82,0.0002,2]
[316007625,1709325038377,-341965.27061885,0.0002,2]
[316007626,1709325038389,-57188.31325144,0.0002,2]
[316007627,1709325038622,-2450897.23494762,0.0002,2]
[316007628,1709325038631,-155.77377518,0.0002,2]
[316007629,1709325038640,-4773.27973129,0.0002,2]
[316007630,1709325038649,-320.95403242,0.0002,2]
[316007631,1709325038658,-282.21588625,0.0002,2]
[316007632,1709325038669,-151.14630182,0.0002,2]
[316007633,1709325038678,-1000.0,0.0002,2]
[316007634,1709325038687,-194.07007002,0.0002,2]
[316007635,1709325038697,-194.07007002,0.0002,2]
[316007636,1709325038706,-194.07007002,0.0002,2]
[316007637,1709325038715,-194.07007002,0.0002,2]
[316007638,1709325038725,-178.0,0.00020096,2]
[316007639,1709325038734,-819.21437792,0.00020096,2]
[316007641,1709325038743,-9954.06128778,0.00020099,2]
[316007643,1709325038751,-840.0,0.00020111,2]
[316007645,1709325038760,-150.0,0.00020135,2]
[316007647,1709325038770,-159.2,0.00020137,2]
[316007649,1709325038779,-2000.0,0.00020198,2]
[316007651,1709325038789,-200.0,0.00020198,2]
[316007653,1709325038798,-203.0,0.00020255,2]
[316007655,1709325038807,-150.0,0.00020264,2]
[316007657,1709325038816,-150.0,0.00020277,2]
[316007659,1709325038825,-9954.06128778,0.00020298,2]
[316007661,1709325038835,-4146.75,0.00020298,14]
[316007663,1709325038844,-1000.0,0.00020376,2]
[316007665,1709325038853,-160.0,0.00020383,2]
[316007667,1709325038862,-87.8028525,0.00020412,2]
[316007669,1709325038871,-690.7107217,0.00020434,3]
[316007671,1709325038881,-166.06,0.00020447,10]
[316007673,1709325038890,-195.0,0.00020451,2]
[316007674,1709325038899,-565.06,0.0002046,2]
[316007675,1709325038908,-9954.06128778,0.00020497,2]
[316007676,1709325038919,-194.07007002,0.00020549,2]
[316007677,1709325038929,-20031.75565759,0.0002055,2]
[316007678,1709325038938,-159.2,0.00020616,2]
[316007679,1709325038949,-411.59,0.00020636,2]
[316007680,1709325038959,-178.0,0.00020644,2]
[316007681,1709325038968,-150.0,0.00020651,2]
[316007682,1709325038982,-150.0,0.00020694,2]
[316007683,1709325038991,-9954.06128778,0.00020696,2]
[316007684,1709325039000,-349.0,0.00020751,2]
[316007685,1709325039010,-153.0,0.00020751,2]
[316007686,1709325039019,-150.0,0.00020764,2]
[316007687,1709325039030,-1000.0,0.00020769,2]
[316007688,1709325039039,-150.0,0.00020819,2]
[316007689,1709325039048,-150.0,0.00020891,2]
[316007690,1709325039057,-9954.06128778,0.00020895,2]
[316007691,1709325039067,-1082.36154827,0.00020926,2]
[316007692,1709325039077,-690.7107217,0.00020968,3]
[316007693,1709325039086,-150.0,0.00020973,2]
[316007694,1709325039095,-738.26531649,0.00021,2]
[316007695,1709325039104,-19289.05075021,0.00021,2]
[316007696,1709325039114,-1000.0,0.0002102,2]
[316007697,1709325039123,-946.47381297,0.00021027,2]
[316007698,1709325039286,-9954.06128778,0.00021093,2]
[316007699,1709325039296,-159.2,0.00021096,2]
[316007700,1709325039305,-9420.68,0.00021096,2]
[316007701,1709325039313,-2000.0,0.00021096,2]
[316007702,1709325039323,-150.0,0.00021106,2]
[316007703,1709325039332,-199.05,0.0002111,2]
[316007704,1709325039341,-2058.71822193,0.00021133,2]
[316007705,1709325039350,-638.05244126,0.00021133,2]
[316007706,1709325039359,-10662.23136102,0.00021133,2]
[316007707,1709325039368,-174.48854064,0.00021133,2]
[316007708,1709325039377,-1147.68598985,0.00021133,2]
[316007709,1709325039386,-195.0,0.00021136,2]
[316007710,1709325039395,-565.06,0.00021184,2]
[316007711,1709325039404,-178.0,0.00021192,2]
[316007712,1709325039415,-150.0,0.00021214,2]
[316007713,1709325039424,-199.05,0.00021221,2]
[316007714,1709325039433,-3805.06,0.00021234,2]
[316007715,1709325039442,-156.3,0.00021241,2]
[316007716,1709325039451,-150.0,0.00021271,2]
[316007717,1709325039460,-9954.06128778,0.00021292,2]
[316007718,1709325039470,-208.88,0.0002131,2]
[316007719,1709325039479,-199.05,0.00021332,2]
[316007720,1709325039488,-3286.0,0.0002137,2]
[316007721,1709325039497,-150.0,0.00021386,2]
[316007722,1709325039506,-172.00034836,0.000214,2]
[316007723,1709325039516,-349.0,0.00021436,2]
[316007724,1709325039525,-153.0,0.00021436,2]
[316007725,1709325039534,-199.05,0.00021443,2]
[316007726,1709325039543,-170.52,0.00021475,2]
[316007727,1709325039553,-9954.06128778,0.00021491,2]
[316007728,1709325039562,-690.7107217,0.00021502,4]
[316007729,1709325039571,-1000.0,0.00021538,2]
[316007730,1709325039580,-199.05,0.00021554,2]
[316007731,1709325039589,-411.59,0.00021575,2]
[316007732,1709325039599,-880.50755167,0.00021633,2]
[316007733,1709325039608,-199.05,0.00021665,2]
[316007734,1709325039617,-9954.06128778,0.0002169,2]
[316007735,1709325039626,-1082.36154826,0.000217,2]
[316007736,1709325039636,-203.0,0.00021727,4]
[316007737,1709325039645,-3207.98771673,0.00021731,2]
[316007738,1709325039654,-355.05,0.0002174,2]
[316007739,1709325039665,-150.0,0.0002174,2]
[316007740,1709325039674,-150.0,0.00021764,2]
[316007741,1709325039684,-199.05,0.00021776,2]
[316007742,1709325039695,-362.9061,0.000218,2]
[316007743,1709325039704,-10756.1991,0.000218,2]
[316007744,1709325039714,-1000.0,0.000218,2]
[316007745,1709325039723,-32653.9557,0.000218,2]
[316007746,1709325039733,-456.2918,0.000218,2]
[316007747,1709325039743,-734.7819,0.00021817,2]
[316007748,1709325039753,-3692.3724,0.00021817,2]
[316007749,1709325039762,-70505.823,0.00021817,2]
[316007750,1709325039772,-2341.0124,0.00021817,2]
[316007751,1709325039783,-155300.6408,0.00021817,2]
[316007752,1709325039794,-195.0,0.00021821,2]
[316007753,1709325039803,-1500.0,0.00021874,2]
[316007754,1709325039813,-199.05,0.00021888,2]
[316007755,1709325039824,-9954.06128778,0.00021889,2]
[316007756,1709325039834,-1500.0,0.00021894,2]
[316007757,1709325039843,-9838.50495722,0.000219,2]
[316007758,1709325039853,-9838.50495711,0.000219,2]
[316007759,1709325039862,-750.0,0.000219,2]
[316007760,1709325039872,-4000.0,0.000219,2]
[316007761,1709325039882,-1000.0,0.000219,2]
[316007762,1709325039891,-250.0,0.000219,2]
[316007763,1709325039901,-600.67971408,0.000219,2]
[316007764,1709325039910,-325.0,0.000219,2]
[316007765,1709325039923,-150.0,0.000219,2]
[316007766,1709325039932,-847.0,0.000219,2]
[316007767,1709325039942,-565.06,0.00021907,2]
[316007768,1709325039951,-213.5254799,0.00021916,20]
[316007769,1709325039960,-194.07007002,0.00021916,2]
[316007770,1709325039970,-500.0,0.00021917,2]
[316007771,1709325039981,-500.0,0.00021917,2]
[316007772,1709325039991,-500.0,0.00021917,2]
[316007773,1709325040002,-500.0,0.00021917,2]
[316007774,1709325040012,-500.0,0.00021917,2]
[316007775,1709325040022,-500.0,0.00021917,2]
[316007776,1709325040032,-500.0,0.00021917,2]
[316007777,1709325040042,-507.83586172,0.00021917,2]
[316007778,1709325040051,-500.0,0.00021917,2]
[316007779,1709325040061,-500.0,0.00021917,2]
[316007780,1709325040071,-500.0,0.00021917,2]
[316007781,1709325040080,-500.0,0.00021917,2]
[316007782,1709325040091,-500.0,0.00021917,2]
[316007783,1709325040100,-500.0,0.00021917,2]
[316007784,1709325040109,-557.38543119,0.00021917,2]
[316007785,1709325040118,-500.0,0.00021917,2]
[316007786,1709325040127,-500.0,0.00021917,2]
[316007787,1709325040136,-500.0,0.00021917,2]
[316007788,1709325040145,-500.0,0.00021917,2]
[316007789,1709325040155,-500.0,0.00021917,2]
[316007790,1709325040166,-500.0,0.00021917,2]
[316007791,1709325040176,-500.0,0.00021917,2]
[316007792,1709325040184,-500.0,0.00021917,2]
[316007793,1709325040197,-500.0,0.00021917,2]
[316007794,1709325040219,-500.0,0.00021917,2]
[316007795,1709325040236,-500.0,0.00021917,2]
[316007796,1709325040255,-500.0,0.00021917,2]
[316007797,1709325040274,-500.0,0.00021917,2]
[316007798,1709325040291,-500.0,0.00021917,2]
[316007799,1709325040306,-500.0,0.00021917,2]
[316007800,1709325040324,-500.0,0.00021917,2]
[316007801,1709325040341,-500.0,0.00021917,2]
[316007802,1709325040359,-500.0,0.00021917,2]
[316007803,1709325040377,-500.0,0.00021917,2]
[316007804,1709325040396,-248.44504539,0.00021917,2]
[316007805,1709325040417,-500.0,0.00021917,2]
[316007806,1709325040429,-500.0,0.00021917,2]
[316007807,1709325040445,-500.0,0.00021917,2]
[316007808,1709325040462,-500.0,0.00021917,2]
[316007809,1709325040475,-500.0,0.00021917,2]
[316007810,1709325040489,-500.0,0.00021917,2]
[316007811,1709325040508,-500.0,0.00021917,2]
[316007812,1709325040522,-500.0,0.00021917,2]
[316007813,1709325040537,-500.0,0.00021917,2]
[316007814,1709325040551,-288.60963797,0.00021917,2]
[316007815,1709325040565,-579.47,0.00021917,2]
[316007816,1709325040580,-500.0,0.00021917,2]
[316007817,1709325040594,-500.0,0.00021917,2]
[316007818,1709325040609,-500.0,0.00021917,2]
[316007819,1709325040625,-500.0,0.00021917,2]
[316007820,1709325040639,-500.0,0.00021917,2]
[316007821,1709325040654,-500.0,0.00021917,2]
[316007822,1709325040669,-500.0,0.00021917,2]
[316007823,1709325040684,-500.0,0.00021917,2]
[316007824,1709325040699,-500.0,0.00021917,2]
[316007825,1709325040714,-500.0,0.00021917,2]
[316007826,1709325040728,-500.0,0.00021917,2]
[316007827,1709325040743,-500.0,0.00021917,2]
[316007828,1709325040758,-500.0,0.00021917,2]
[316007829,1709325040774,-500.0,0.00021917,2]
[316007830,1709325040792,-500.0,0.00021917,2]
[316007831,1709325040807,-503.69100001,0.00021917,2]
[316007832,1709325040823,-500.0,0.00021917,2]
[316007833,1709325040838,-500.0,0.00021917,2]
[316007834,1709325040854,-500.0,0.00021917,2]
[316007835,1709325040868,-500.0,0.00021917,2]
[316007836,1709325040883,-500.0,0.00021917,2]
[316007837,1709325040898,-500.0,0.00021917,2]
[316007838,1709325040913,-500.0,0.00021917,2]
[316007839,1709325040930,-500.0,0.00021917,2]
[316007840,1709325040945,-500.0,0.00021917,2]
[316007841,1709325040959,-500.0,0.00021917,2]
[316007842,1709325040975,-500.0,0.00021917,2]
[316007843,1709325040991,-503.86489197,0.00021917,2]
[316007844,1709325041008,-500.0,0.00021917,2]
[316007845,1709325041024,-500.0,0.00021917,2]
[316007846,1709325041040,-500.0,0.00021917,2]
[316007847,1709325041056,-500.0,0.00021917,2]
[316007848,1709325041072,-500.0,0.00021917,2]
[316007849,1709325041087,-500.0,0.00021917,2]
[316007850,1709325041103,-500.0,0.00021917,2]
[316007851,1709325041118,-500.0,0.00021917,2]
[316007852,1709325041134,-500.0,0.00021917,2]
[316007853,1709325041149,-500.0,0.00021917,2]
[316007854,1709325041165,-500.0,0.00021917,2]
[316007855,1709325041180,-500.0,0.00021917,2]
[316007856,1709325041196,-500.0,0.00021917,2]
[316007857,1709325041211,-500.0,0.00021917,2]
[316007858,1709325041227,-500.0,0.00021917,2]
[316007859,1709325041243,-500.0,0.00021917,2]
[316007860,1709325041258,-500.0,0.00021917,2]
[316007861,1709325041274,-500.0,0.00021917,2]
[316007862,1709325041290,-500.0,0.00021917,2]
[316007863,1709325041304,-500.0,0.00021917,2]
[316007864,1709325041319,-500.0,0.00021917,2]
[316007865,1709325041334,-274.35092241,0.00021917,2]
[316007866,1709325041350,-500.0,0.00021917,2]
[316007867,1709325041364,-500.0,0.00021917,2]
[316007868,1709325041379,-500.0,0.00021917,2]
[316007869,1709325041394,-500.0,0.00021917,2]
[316007870,1709325041410,-500.0,0.00021917,2]
[316007871,1709325041426,-500.0,0.00021917,2]
[316007872,1709325041441,-500.0,0.00021917,2]
[316007873,1709325041457,-500.0,0.00021917,2]
[316007874,1709325041472,-582.93819117,0.00021917,2]
[316007875,1709325041483,-500.0,0.00021917,2]
[316007876,1709325041493,-500.0,0.00021917,2]
[316007877,1709325041502,-500.0,0.00021917,2]
[316007878,1709325041512,-500.0,0.00021917,2]
[316007879,1709325041522,-500.0,0.00021917,2]
[316007880,1709325041531,-500.0,0.00021917,2]
[316007881,1709325041541,-500.0,0.00021917,2]
[316007882,1709325041551,-500.0,0.00021917,2]
[316007883,1709325041560,-500.0,0.00021917,2]
[316007884,1709325041570,-500.0,0.00021917,2]
[316007885,1709325041580,-500.0,0.00021917,2]
[316007886,1709325041590,-500.0,0.00021917,2]
[316007887,1709325041892,-500.0,0.00021917,2]
[316007888,1709325041909,-500.0,0.00021917,2]
[316007889,1709325041946,-500.0,0.00021917,2]
[316007890,1709325041955,-500.0,0.00021917,2]
[316007891,1709325041965,-500.0,0.00021917,2]
[316007892,1709325041975,-500.0,0.00021917,2]
[316007893,1709325041984,-500.0,0.00021917,2]
[316007894,1709325041996,-500.0,0.00021917,2]
[316007895,1709325042006,-500.0,0.00021917,2]
[316007896,1709325042016,-500.0,0.00021917,2]
[316007897,1709325042026,-500.0,0.00021917,2]
[316007898,1709325042036,-503.89777806,0.00021917,2]
[316007899,1709325042045,-500.0,0.00021917,2]
[316007900,1709325042055,-500.0,0.00021917,2]
[316007901,1709325042066,-500.0,0.00021917,2]
[316007902,1709325042076,-500.0,0.00021917,2]
[316007903,1709325042088,-500.0,0.00021917,2]
[316007904,1709325042097,-500.0,0.00021917,2]
[316007905,1709325042107,-500.0,0.00021917,2]
[316007906,1709325042117,-511.8015236,0.00021917,2]
[316007907,1709325042127,-500.0,0.00021917,2]
[316007908,1709325042136,-500.0,0.00021917,2]
[316007909,1709325042146,-500.0,0.00021917,2]
[316007910,1709325042155,-500.0,0.00021917,2]
[316007911,1709325042165,-500.0,0.00021917,2]
[316007912,1709325042177,-500.0,0.00021917,2]
[316007913,1709325042187,-500.0,0.00021917,2]
[316007914,1709325042197,-500.0,0.00021917,2]
[316007915,1709325042206,-500.0,0.00021917,2]
[316007916,1709325042216,-500.0,0.00021917,2]
[316007917,1709325042225,-514.19340767,0.00021917,2]
[316007918,1709325042235,-500.0,0.00021917,2]
[316007919,1709325042245,-500.0,0.00021917,2]
[316007920,1709325042254,-500.0,0.00021917,2]
[316007921,1709325042264,-500.0,0.00021917,2]
[316007922,1709325042274,-500.0,0.00021917,2]
[316007923,1709325042283,-500.0,0.00021917,2]